Cogmind - Beta 10.2 @@@ ROGUE MODE // 2021.04.19 @ 20:07:25 Player: gammafunk Result: Self-destructed Performance ------------- Evolutions (3) 1500 Regions Visited (6) 1200 Robots Destroyed (191) 955 Value Destroyed (4787) 4787 Prototype IDs (12) 240 Alien Tech Used (0) 0 Bonus (307) 307 TOTAL SCORE: 8989 Bonus ------- High Alert Combat Kills 177 Follower Combat Kills 250 Friendly Fire -120 Cogmind --------- Core Integrity 670/700 Matter 282/300 Energy 500/500 System Corruption 2% Temperature Cool (0) Movement Treading (186) Ox1 Location -7/Factory Parts ------- > --- POWER (1) -------- F-cell Engine > --- PROPULSION (3) --- Armored Treads Armored Treads Medium Treads > --- UTILITY (5) ------ High-capacity Storage Unit High-capacity Storage Unit Long-range Sensor Array Improved Signal Interpreter Armor Integrity Analyzer > --- WEAPON (4) ------- Improved Assault Rifle Enhanced Autogun Enhanced Autogun Precision Assault Rifle > --- INVENTORY (20) --- Heavy Ion Engine Medium Treads Medium Treads Improved Cooling System High-capacity Storage Unit High-capacity Storage Unit Large Matter Pod (0) Advanced Sensor Array Transmission Jammer Improved Medium Armor Plating Layered Light Armor Plating System Shield System Backup Module Heavy Assault Rifle Improved Assault Rifle Flak Gun Shock Bomb Launcher Shock Bomb Launcher Rocket Launcher Great Axe Peak State ------------ > --- POWER ------------ F-cell Engine > --- PROPULSION ------- Armored Treads Armored Treads Medium Treads > --- UTILITY ---------- High-capacity Storage Unit High-capacity Storage Unit Long-range Sensor Array Improved Signal Interpreter Hacking Suite > --- WEAPON ----------- Improved Assault Rifle Enhanced Autogun Enhanced Autogun Precision Assault Rifle > --- INVENTORY -------- Heavy Ion Engine Medium Treads Medium Treads Medium Treads Improved Cooling System High-capacity Storage Unit High-capacity Storage Unit Large Matter Pod Advanced Sensor Array Transmission Jammer Improved Medium Armor Plating Layered Light Armor Plating System Backup Module Heavy Assault Rifle Improved Assault Rifle Improved Assault Rifle Shock Bomb Launcher Shock Bomb Launcher Rocket Launcher Great Axe [Rating: 49] Favorites ----------- Power F-cell Engine Engine F-cell Engine Propulsion Armored Treads Treads Armored Treads Wheel Compact Wheel Utility High-capacity Storage Unit Device Long-range Sensor Array Storage High-capacity Storage Unit Processor Improved Signal Interpreter Hackware Hacking Suite Protection Hardened Light Armor Plating Weapon Enhanced Autogun Ballistic Gun Enhanced Autogun Launcher Mini Grenade Launcher Impact Weapon Flail Slashing Weapon Great Axe Build | -11 -10 -10 -9 -9 -8 -7 ------- Run | Scr Mat Min Mat Sto Mat Fac Slots Evolved 6 | . . . 2 . 2 2 Power . | . . . . . . . Propulsion 1 | . . . . . 1 . Utility 3 | . . . 1 . 1 1 Weapon 2 | . . . 1 . . 1 Parts Attached 137 | 9 15 13 24 22 24 30 Power 11 | 1 2 1 3 2 2 . Engine 11 | 1 2 1 3 2 2 . Core . | . . . . . . . Reactor . | . . . . . . . Propulsion 27 | 4 3 3 6 1 5 5 Treads 25 | 2 3 3 6 1 5 5 Leg . | . . . . . . . Wheel 2 | 2 . . . . . . Hover . | . . . . . . . Flight . | . . . . . . . Utility 47 | 2 4 4 2 6 8 21 Device 10 | . . . . . . 10 Storage 9 | 2 3 . 1 2 . 1 Processor 4 | . . 1 . . 1 2 Hackware 3 | . . . . 1 1 1 Protection 21 | . 1 3 1 3 6 7 Artifact . | . . . . . . . Weapon 52 | 2 6 5 13 13 9 4 Energy Gun . | . . . . . . . Energy Cannon . | . . . . . . . Ballistic Gun 46 | 2 5 5 12 10 8 4 Ballistic Cannon . | . . . . . . . Launcher 3 | . 1 . 1 1 . . Special Weapon . | . . . . . . . Impact Weapon 2 | . . . . 2 . . Slashing Weapon 1 | . . . . . 1 . Piercing Weapon . | . . . . . . . Special Melee Weapon . | . . . . . . . Unidentified Prototypes 5 | . . . 3 1 . 1 Parts Lost 3 | . 1 1 . . 1 . Power . | . . . . . . . Propulsion 1 | . . 1 . . . . Utility 1 | . . . . . 1 . Weapon 1 | . 1 . . . . . Highest Loss Streak 1 | . 1 1 . . 1 . Average Slot Usage (%) 99 | . 99 99 99 99 98 99 Engine 10 | . 14 14 11 11 8 7 Treads 24 | . 27 27 21 21 26 23 Storage 18 | . 15 14 22 22 18 15 Processor 1 | . . 5 . . . 7 Hackware 3 | . . . . 1 8 6 Protection 8 | . 12 8 11 9 8 1 Ballistic Gun 29 | . 27 27 32 29 26 30 Naked Turns . | . . . . . . . Heaviest Build 97 | 15 43 43 86 92 93 97 Greatest Support 68 | 40 40 40 40 40 60 68 Greatest Overweight (x) 2 | 1 1 1 2 2 2 1 Average Overweight (x) 1 | . . . 1 2 1 1 Largest Inventory Capacity 20 | 8 12 12 20 20 20 20 Average Capacity 17 | 5 9 12 20 19 20 20 Most Carried 20 | 2 12 12 20 20 20 20 Average Carried 17 | . 8 11 18 19 19 19 Final Capacity 20 | 8 12 12 20 20 20 20 Final Carried 20 | 2 12 11 20 20 20 20 Class Distribution -------------------- 54% | Hauler-Tank 16% | Mutant 10% | Hauler-Skirmisher 6% | Scavenger-Mutant 5% | Hauler-Mutant Dominant Class ---------------- Mutant | -10/Materials Scavenger-Mutant | -10/Mines Hauler-Tank | -9/Materials Hauler-Tank | -9/Storage Hauler-Tank | -8/Materials Hauler-Skirmisher | -7/Factory Resources | -11 -10 -10 -9 -9 -8 -7 ----------- Run | Scr Mat Min Mat Sto Mat Fac Matter Collected 5023 | 302 509 235 890 1019 1046 1022 Remotely . | . . . . . . . Salvage Created 7074 | 92 848 465 1396 1485 1712 1076 Parts 439 | 4 53 35 87 96 106 58 Haulers Intercepted 18 | . 2 . 6 6 4 . Recyclers Shooed 8 | . 1 . 1 2 4 . Parts Field Recycled . | . . . . . . . Retrieved Matter . | . . . . . . . Parts Self-Destructed . | . . . . . . . Prevented . | . . . . . . . Kills | -11 -10 -10 -9 -9 -8 -7 ------- Run | Scr Mat Min Mat Sto Mat Fac Combat Hostiles Destroyed 128 | . 14 13 24 25 33 19 Guns 115 | . 14 13 24 25 20 19 AOE 13 | . . . . . 13 . Classes Destroyed 13 | 1 6 2 . . . 4 Worker 5 | . 2 1 . 1 1 . Builder 1 | . . . . . . 1 Tunneler 4 | . . 2 2 . . . Hauler 18 | . 2 . 6 6 4 . Recycler 12 | 1 2 1 1 2 5 . Operator 4 | . 1 . 1 1 1 . Watcher 18 | . 3 . 4 2 5 4 Swarmer 43 | . 3 6 8 7 16 3 Grunt 51 | . 11 6 10 6 10 8 Duelist 1 | . . . . . . 1 Sentry 30 | . . 1 7 12 7 3 Hunter 1 | . . . . . . 1 Programmer 3 | . . . . . . 3 Best Kill Streak 15 | 1 5 3 6 7 15 4 Combat Bots Only 15 | . 3 3 5 6 15 4 Max Kills in Single Turn 7 | 1 2 1 2 2 7 1 Gunslinging 1 | . 1 . . 1 . . Exploded 7 | . . . . . 7 . Melee . | . . . . . . . Uniques/NPCs Destroyed . | . . . . . . . Combat | -11 -10 -10 -9 -9 -8 -7 -------- Run | Scr Mat Min Mat Sto Mat Fac Damage Taken 4867 | . 803 445 871 616 1178 954 Core 567 | . 135 105 59 102 136 30 Absorbed by Shields . | . . . . . . . Core Remaining (%) 59 | 100 . 4 . 59 75 . Volleys Fired 393 | 2 69 29 78 68 86 61 Largest 4 | 2 2 2 3 3 3 4 Hottest 101 | 40 40 43 69 69 76 101 Shots Fired 1119 | 4 138 58 232 202 245 240 Gun 1114 | 4 138 58 231 201 242 240 Cannon . | . . . . . . . Launcher 5 | . . . 1 1 3 . Special . | . . . . . . . Kinetic 1114 | 4 138 58 231 201 242 240 Thermal . | . . . . . . . Explosive 5 | . . . 1 1 3 . Electromagnetic . | . . . . . . . Robot Hit Streak 23 | 3 8 21 23 15 21 21 Robot Miss Streak 5 | . 4 3 3 3 5 5 Penetration Max . | . . . . . . . Secondary Targets 18 | . 2 5 3 3 4 1 Max Gunslinging Chain 1 | . 1 1 1 1 1 1 Shots Hit Robots 738 | 3 92 47 148 129 165 154 Core Hits 315 | 2 42 28 56 55 79 53 Critical Hits 6 | . 1 . 2 . 2 1 Critical Kills 2 | . . . 1 . 1 . Critical Parts Destroyed 4 | . 1 . 1 . 1 1 Melee Attacks 5 | . . . . 4 1 . Impact 4 | . . . . 4 . . Slashing 1 | . . . . . 1 . Piercing . | . . . . . . . Sneak Attacks . | . . . . . . . Combat Hostiles . | . . . . . . . Follow-up Attacks . | . . . . . . . Damage Inflicted 11386 | 35 1230 543 1971 1953 3327 2327 Guns 10364 | 35 1206 477 1948 1896 2475 2327 Cannons . | . . . . . . . Explosions 829 | . . . . . 829 . Melee . | . . . . . . . Ramming 193 | . 24 66 23 57 23 . Kinetic 10364 | 35 1206 477 1948 1896 2475 2327 Thermal . | . . . . . . . Explosive 829 | . . . . . 829 . Electromagnetic . | . . . . . . . Impact . | . . . . . . . Slashing . | . . . . . . . Piercing . | . . . . . . . Highest Corruption 2 | . . . . . . 2 Average Corruption 1 | . . . . . . 1 Corruption Purged . | . . . . . . . Effects 17 | . . . . . . 17 Message Errors 4 | . . . . . . 4 Heat Flow Errors 1 | . . . . . . 1 Energy Discharges 2 | . . . . . . 2 Data Loss (minor) 2 | . . . . . . 2 Targeting Errors 4 | . . . . . . 4 Weapon Failures 4 | . . . . . . 4 Overload Shots . | . . . . . . . Overflow Damage 36 | . . . . . 36 . Projectiles . | . . . . . . . Explosions 36 | . . . . . 36 . Melee . | . . . . . . . Knockbacks 3 | . . 1 . 1 1 . Impact 3 | . . 1 . 1 1 . Kinetic . | . . . . . . . Secondary . | . . . . . . . Self-Inflicted Damage 73 | . . . . . 73 . Shots 2 | . . . . . 2 . Rammed 25 | 1 6 4 6 6 2 . Targets Rammed 31 | 1 6 7 8 6 2 1 Kicked . | . . . . . . . Crushed 6 | . . 3 2 . . 1 Highest Temperature 211 | . 21 18 129 204 156 211 Average Temperature 43 | . 8 8 29 52 36 68 Received Heat Transfer 1512 | . 354 141 282 171 414 150 Siege Activations . | . . . . . . . Robots Corrupted . | . . . . . . . Combat Hostiles . | . . . . . . . Parts Fried 1 | . . 1 . . . . Impact Corruptions . | . . . . . . . Robots Melted . | . . . . . . . Combat Hostiles . | . . . . . . . Parts Melted . | . . . . . . . Heat Transferred . | . . . . . . . Parts Sabotaged . | . . . . . . . Parts Stolen . | . . . . . . . Parts Stripped . | . . . . . . . Power Chain Reactions . | . . . . . . . Missiles Intercepted . | . . . . . . . Alert | -11 -10 -10 -9 -9 -8 -7 ------- Run | Scr Mat Min Mat Sto Mat Fac Peak Influence 805 | 5 153 278 419 348 805 275 Initial 91 | . 3 23 15 76 91 10 Average 168 | 1 60 76 221 252 197 124 Maximum Alert Level 3 | . . 1 2 1 3 1 Low Security (%) 63 | 100 100 92 48 11 73 77 Level 1 32 | . . 7 49 88 8 22 Level 2 3 | . . . 2 . 13 . Level 3 1 | . . . . . 5 . Level 4 . | . . . . . . . Level 5 . | . . . . . . . High Security . | . . . . . . . Max Security . | . . . . . . . Squads Dispatched 20 | . 5 . 4 3 2 6 Investigation 5 | . 2 . 2 1 . . Extermination 4 | . . . . . . 4 Reinforcement 10 | . 3 . 2 2 2 1 Assault . | . . . . . . . Garrison 1 | . . . . . . 1 Intercept . | . . . . . . . Construction Impeded . | . . . . . . . Haulers Reinforced . | . . . . . . . Stealth | -11 -10 -10 -9 -9 -8 -7 --------- Run | Scr Mat Min Mat Sto Mat Fac Distress Signals 13 | . 1 . 6 2 3 1 Communications Jammed 1 | . . . . . . 1 Distress Signals . | . . . . . . . Times Spotted 204 | . 28 12 49 34 49 32 Peak Tracking Total 14 | . 3 3 5 7 14 4 Tactical Retreats 11 | . 2 . 4 1 3 1 Traps | -11 -10 -10 -9 -9 -8 -7 ------- Run | Scr Mat Min Mat Sto Mat Fac Traps Triggered 11 | . 1 . 2 1 3 4 Indirectly . | . . . . . . . Trap Hack Attempts . | . . . . . . . Triggered . | . . . . . . . Disarmed . | . . . . . . . Reprogrammed . | . . . . . . . Reused . | . . . . . . . Traps Extracted . | . . . . . . . Installed . | . . . . . . . Triggered . | . . . . . . . Machines | -11 -10 -10 -9 -9 -8 -7 ---------- Run | Scr Mat Min Mat Sto Mat Fac Machines Disabled 6 | . . . 1 3 1 1 Max in Single Turn 1 | . . . 1 1 1 1 Garrison Access 2 | . . . . 1 1 . Machines Sabotaged . | . . . . . . . Garrisons Compromised . | . . . . . . . Overloaded Fab Kills . | . . . . . . . Fab Network Shutdowns . | . . . . . . . Hacking | -11 -10 -10 -9 -9 -8 -7 --------- Run | Scr Mat Min Mat Sto Mat Fac Machines Accessed 57 | . 7 . 13 12 15 10 Terminals 42 | . 6 . 10 9 9 8 Fabricators 2 | . . . . . . 2 Repair Stations 7 | . 1 . 2 2 2 . Recycling Units 2 | . . . . . 2 . Scanalyzers 2 | . . . 1 . 1 . Garrison Access 2 | . . . . 1 1 . Total Hacks 168 | . 24 . 42 32 35 35 Successful 97 | . 13 . 20 23 23 18 Failed 71 | . 11 . 22 9 12 17 Catastrophic 10 | . 2 . 3 1 3 1 Database Lockouts . | . . . . . . . Manual 86 | . 14 . 27 8 20 17 Terminals 121 | . 20 . 31 18 25 27 Fabricators 8 | . . . . . . 8 Repair Stations 29 | . 4 . 9 12 4 . Recycling Units 3 | . . . . . 3 . Scanalyzers 4 | . . . 2 . 2 . Garrison Access 3 | . . . . 2 1 . Terminal Hacks 42 | . 6 . 7 9 10 10 Part Schematic 4 | . 1 . . . 2 1 Robot Analysis 3 | . 3 . . . . . Prototype ID Bank 4 | . . . 1 2 1 . Open Door 3 | . . . . 3 . . Branch Access Points 2 | . . . 1 . . 1 Terminal Index 1 | . . . . . . 1 Fabricator Index 1 | . . . . . . 1 Alert Level 6 | . . . 1 1 2 2 Unreport Threat 9 | . . . 3 1 4 1 Locate Traps 5 | . 1 . 1 2 . 1 Recall Reinforcements 2 | . 1 . . . . 1 Hauler Manifests 1 | . . . . . 1 . Zone Layout 1 | . . . . . . 1 Fabricator Hacks 4 | . . . . . . 4 Load Schematic 2 | . . . . . . 2 Build 2 | . . . . . . 2 Repair Station Hacks 25 | . 4 . 7 10 4 . Scan Component 13 | . 2 . 4 5 2 . Repair 12 | . 2 . 3 5 2 . Recycling Unit Hacks 3 | . . . . . 3 . Retrieve Components 3 | . . . . . 3 . Scanalyzer 4 | . . . 2 . 2 . Insert Component 2 | . . . 1 . 1 . Analyze 2 | . . . 1 . 1 . Garrison Access Hacks 2 | . . . . 1 1 . Seal Access 2 | . . . . 1 1 . Unauthorized Hacks 17 | . 3 . 4 3 3 4 Terminals 17 | . 3 . 4 3 3 4 Botnet 17 | . 3 . 4 3 3 4 Fabricators . | . . . . . . . Repair Stations . | . . . . . . . Recycling Units . | . . . . . . . Scanalyzers . | . . . . . . . Garrison Access . | . . . . . . . Data Cores Recovered 2 | . . . 1 . 1 . Used . | . . . . . . . Hacking Detections 51 | . 7 . 12 9 13 10 Full Trace Events 1 | . 1 . . . . . Feedback Events . | . . . . . . . Feedback Blocked . | . . . . . . . Robot Schematics Acquired . | . . . . . . . Robots Built . | . . . . . . . Matter . | . . . . . . . Time . | . . . . . . . Total Robot Build Rating . | . . . . . . . Part Schematics Acquired 6 | . 1 . 1 . 3 1 Parts Built 2 | . . . . . . 2 Matter 292 | . . . . . . 292 Time 73 | . . . . . . 73 Total Part Build Rating 6 | . . . . . . 6 Parts Repaired 12 | . 2 . 3 5 2 . Time 478 | . 52 . 129 179 118 . Parts Recycled . | . . . . . . . Recycled Matter . | . . . . . . . Retrieved Matter . | . . . . . . . Retrieved Components 22 | . . . . . 22 . Parts Scanalyzed 2 | . . . 1 . 1 . Part Schematics Acquired 2 | . . . 1 . 1 . Parts Damaged . | . . . . . . . Bothacking | -11 -10 -10 -9 -9 -8 -7 ------------ Run | Scr Mat Min Mat Sto Mat Fac Used RIF Installer . | . . . . . . . Robots Hacked . | . . . . . . . Non-combat . | . . . . . . . Combat . | . . . . . . . Robot Hacks Applied . | . . . . . . . Relay Couplers Released . | . . . . . . . Robots Rewired . | . . . . . . . Allies Hacked . | . . . . . . . Hacks Repelled . | . . . . . . . Allies | -11 -10 -10 -9 -9 -8 -7 -------- Run | Scr Mat Min Mat Sto Mat Fac Total Allies 4 | . . 4 . . . . Largest Group 3 | . . 3 3 . . . Highest-Rated Group 40 | . . 40 40 . . . Highest-Rated Ally 31 | . . 31 16 . . . Total Orders . | . . . . . . . Ally Attacks 67 | . . 1 66 . . . Total Damage 728 | . . . 728 . . . Kills 14 | . . . 14 . . . Allies Corrupted 1 | . . 1 . . . . Allies Melted . | . . . . . . . Intel | -11 -10 -10 -9 -9 -8 -7 ------- Run | Scr Mat Min Mat Sto Mat Fac Robot Analysis Total 3 | . 3 . . . . . Derelict Logs Recovered 2 | . . 2 . . . . Drone Launches . | . . . . . . . Drone Recoveries . | . . . . . . . Exploration | -11 -10 -10 -9 -9 -8 -7 ------------- Run | Scr Mat Min Mat Sto Mat Fac Turns Passed 14888 | 103 2019 1344 3154 2576 3069 2623 Spaces Moved 6706 | 60 1008 708 1325 1005 1386 1214 Core 18 | 18 . . . . . . Treads 6685 | 39 1008 708 1325 1005 1386 1214 Legs . | . . . . . . . Wheels 3 | 3 . . . . . . Hover . | . . . . . . . Flight . | . . . . . . . Fastest Speed 50 | 50 160 160 180 210 190 186 Average Speed 188 | 132 165 161 208 210 190 186 Slowest Speed 210 | 160 180 180 210 210 210 190 Overloaded Moves . | . . . . . . . Propulsion Burnouts . | . . . . . . . Robots Hopped . | . . . . . . . Cave-ins Triggered . | . . . . . . . Exploration Rate (%) 72 | 4 97 99 87 94 95 32 Regions Visited 6 Branch Regions 2 Pre-discovered Areas 1 | . . 1 . . . . Known Exits Taken 3 | . . . 1 1 1 . Unknown Exits Taken 3 | 1 1 1 . . . . Scrap Searched 3 | . . 3 . . . . Spaces Dug 11 | . . . . 10 1 . Terrain Destroyed 43 | . . . 14 10 19 . Melee 1 | . . . . . 1 . Projectile . | . . . . . . . AOE 42 | . . . 14 10 18 . Terrain Rammed . | . . . . . . . Walls Destroyed . | . . . . . . . Machines Disabled . | . . . . . . . Actions | -11 -10 -10 -9 -9 -8 -7 --------- Run | Scr Mat Min Mat Sto Mat Fac Total 8200 | 77 1226 856 1559 1341 1669 1472 Wait 766 | . 106 87 79 217 140 137 Move 6701 | 60 1007 707 1324 1004 1385 1214 Hop . | . . . . . . . Pick Up 69 | 2 11 1 21 10 14 10 Fast Attach 34 | 9 3 3 4 5 7 3 Attach 17 | . 1 2 3 2 5 4 Detach 10 | 2 1 2 1 1 1 2 Swap 86 | . 11 8 17 15 12 23 Drop 85 | 2 11 10 24 9 16 13 Fire 393 | 2 69 29 78 68 86 61 Melee 5 | . . . . 4 1 . Ram . | . . . . . . . Kick . | . . . . . . . Crush 30 | . 6 7 8 6 2 1 Escape Stasis 4 | . . . . . . 4 Rewire . | . . . . . . . Trap . | . . . . . . . Miscellaneous . | . . . . . . . Route ------- -11/Scrapyard -10/Materials (discovered 5 exits: *Mat x3 / [*Min x2]) -10/Mines (discovered 3 exits: *Mat x2 / [*Exi]) -9/Materials (discovered 6 exits: *Mat x3 / *Min x2 / *Sto) -9/Storage -8/Materials (discovered 3 exits: *Fac x3) -7/Factory (discovered 5 exits: *Fac x3 / Low x2) History --------- Turn | Location | Event 3 | -11/Scrapyard | Discovered new exit (range 15) 104 | -11/Scrapyard | Entered Materials 210 | -10/Materials | Discovered new exit (range 14) 318 | -10/Materials | Build established: Mutant 873 | -10/Materials | Discovered new exit (range 9) 1224 | -10/Materials | Discovered new exit (range 7) 1277 | -10/Materials | Discovered new exit (range 15) 1848 | -10/Materials | Discovered new exit (range 10) 1861 | -10/Materials | Core integrity fell below 50% 2062 | -10/Materials | Repaired Lgt. Treads 2089 | -10/Materials | Repaired Assault Rifle 2123 | -10/Materials | Entered Mines 2211 | -10/Mines | Learned 8 Materials zone layouts 2320 | -10/Mines | Discovered new exit (range 9) 2489 | -10/Mines | Discovered new exit (range 10) 2657 | -10/Mines | Learned location of Storage (-9) 2689 | -10/Mines | Joined a pair of Derelicts in attacking an 0b10 outpost 2691 | -10/Mines | Core integrity fell below 20% 2789 | -10/Mines | Build established: Scavenger-Mutant 3013 | -10/Mines | Received a Mining Laser from a helpful Derelict 3245 | -10/Mines | Excavation squad dispatched 3245 | -10/Mines | A large section of the Mines collapsed 3407 | -10/Mines | Deemed a non-threat by the Exiles lab entrance 3407 | -10/Mines | Discovered new exit (range 5) 3444 | -10/Mines | Assisted by bots powering up and referring to "LRC-V3" 3467 | -10/Mines | Entered Materials 3467 | -9/Materials | Accompanied by 3 allies 3467 | -9/Materials | Evolved 2 slots: Utility x1, Weapon x1 3468 | -9/Materials | Identified exit to Storage 3468 | -9/Materials | Identified exit to Materials 3468 | -9/Materials | Identified exit to Mines 3532 | -9/Materials | Discovered exit to Mines (range 15) 3946 | -9/Materials | Build established: Hauler-Tank 4931 | -9/Materials | Repaired Broken Arm. Treads 4973 | -9/Materials | Repaired Arm. Treads 6159 | -9/Materials | Discovered exit to Materials (range 8) 6237 | -9/Materials | Repaired Arm. Treads 6621 | -9/Materials | Entered Storage 7729 | -9/Storage | Discovered exit to Materials (range 15) 8716 | -9/Storage | Repaired Arm. Treads 8749 | -9/Storage | Repaired Med. Armor Plating 8963 | -9/Storage | Repaired Autogun 9016 | -9/Storage | Repaired Imp. Assault Rifle 9048 | -9/Storage | Repaired Hcp. Storage Unit 9197 | -9/Storage | Entered Materials 9197 | -8/Materials | Evolved 2 slots: Propulsion x1, Utility x1 9301 | -8/Materials | Destroyed 15 combat bots 9648 | -8/Materials | Discovered new exit (range 15) 10130 | -8/Materials | Repaired Arm. Treads 10192 | -8/Materials | Discovered new exit (range 16) 10953 | -8/Materials | Discovered new exit (range 10) 11735 | -8/Materials | Identified exit to Factory 11883 | -8/Materials | Repaired F-cell Engine 12266 | -8/Materials | Entered Factory 12266 | -7/Factory | Evolved 2 slots: Utility x1, Weapon x1 12742 | -7/Factory | Discovered new exit (range 8) 12763 | -7/Factory | Identified exit to Factory 12974 | -7/Factory | Fabricated Lrn. Sensor Array (x1) 13550 | -7/Factory | Garrison activated, responded to threat 13607 | -7/Factory | Build established: Hauler-Skirmisher 14039 | -7/Factory | Discovered exit to Factory (range 5) 14342 | -7/Factory | Discovered exit to Factory (range 10) 14546 | -7/Factory | Fabricated Armor Integrity Analyzer (x1) 14682 | -7/Factory | Identified exit to Lower Caves 14889 | -7/Factory | Self-destructed Last Messages --------------- (189,143) Lower Caves Map updated. >>Alert(Purge) Purged threat record, alert level lowered. SWXWL3C6DFCM MIXAVZAWW :Y K-01 Serf cleans the Construction Platform. G-47 Trooper destroyed. Acquired 54 matter. R-06 Scavenger collects Imp. Heat Sink. R-06 Scavenger collects Lgt. Nuclear Core. R-06 Scavenger collects Aluminum Leg. G-50 Soldier destroyed. ALERT: Rogue bot located, Programmers report to Factory Zone 8J. G-47 Trooper destroyed. Acquired 54 matter. Acquired 41 matter. R-06 Scavenger collects Carbon-fiber Leg. O-16 Technician: "IFF HANDSHAKE FAILED. SECURING TERMINAL." Map ----- +----------------------------------------------------+ | ??????????????????????#"" # """ #????????? | | ??????????????????????# # #????????? | | ??????????????????????# = # #????????? | | ?????????????????############# ####### #????????? | | ???????????????? #?????# #????????? | | ???????????????? #?????# #????????? | | ???????????????? #??####+#????????? | | ???????????????? o #??# #????????? | | ?????????????????############## #??# !#????????? | | #####?????????????? # #??# #????????? | | !#?????????? # #??# !!]#????????? | | """""" ????????????? # #??# !!]#????????? | | """"?????????? ?k????"" """" # #### !]]#????????? | | """???????????? k??"""" """" + [= + #????????? | | """?????????????u#?"""" """" ###### !#????????? | | ??????????????+ """" """" #????# ! #????????? | | """"??????? ???# """" """" #????######????????? | | """??????? ??#a"""" """" #??????????????????? | | ""???????# ?# """" """" #??????????????????? | | ?????????# ?# #??????????????????? | | ?????????# # ] #??????????????????? | | ?????????# #####+##################????????? | | ?????????# # ???????? | | ?????????# # ???????? | | ?????????# u# ??????? | | ?????????# @r k ??????? | | ?????????# " # ??????? | | ?????????# " [=# ??????? | | ?????????# " !=# ??????? | | ?????????## " # | ???????? | | ??????????# " ####/############??????? | | ??????????# " r k ?????? | | ??????????# " r k ??????? | | ??????????# ]| " "" "" r ?????? | | ??????????# ]| " "F "" ?????? | | ??????????# ] """"" ????? | | ##????????? ????? | | ?????????? t ????? | | ???????###?##################+########+##???????? | | ????????# ? #?????# #???????????? | | ????????# """""" #?????# ! #???????????? | | ????????# """""" !#?????# """ """ #???????????? | | ????????# """""" #?????#/ """ """ #???????????? | | ????????# """""" #?????# """ """ #???????????? | | ????????# #?????# #???????????? | | ????????#! #?????# """ """ #???????????? | | ##??????# #?????# """ """ #???????????? | | ########+###+#####?????# """ """ #???????????? | | ####????# #???????????? | | #????# #???????????? | +----------------------------------------------------+ Best States ------------- Heat Dissipation 34 Energy Generation 19 Energy Capacity 500 Matter Stores 300 Matter Capacity 300 Sight Range 16 Robot Scan Range 20 Terrain Scan Density 10 Jamming Range 8 Armor Coverage 225 Core Shielding 20 Propulsion Shielding 33 Evasion (%) 40 Targeting Accuracy 5 Armor Integrity Analysis 33 Recoil Reduction 3 Offensive Hacking 10 Defensive Hacking 10 Item Schematics ----------------- Hcp. Storage Unit | -10/Materials | Hacked Arm. Treads | -9/Materials | Scanalyzed Transmission Jammer | -8/Materials | Scanalyzed Adv. Signal Interpreter | -8/Materials | Hacked Armor Integrity Analyzer | -8/Materials | Hacked Lrn. Sensor Array | -7/Factory | Hacked Robot Schematics ------------------ None Fabricated ------------ Lrn. Sensor Array | x1 | -7/Factory Armor Integrity Analyzer | x1 | -7/Factory Alien Tech Used ----------------- None Achievements -------------- None Challenges ------------ None Game ------ Seed CoolantMiniCoupler Manual? 0 Play Time 01:25:05 Cumulative 183.5 hours Start 2021.04.19 @ 14:39:01 End 2021.04.19 @ 20:07:25 Sessions 4 Manual Loads 0 Difficulty Rogue Special Mode None Game No. 69 Rogue 69 Adventurer 0 Explorer 0 Win Type - Total 3 Types 1/1/1/0/0/0/0/0/0 Lore% 59 Gallery% 59 Achievement% 56 Wizard Run 0 Options --------- ASCII 0 Keyboard 1 Movement Vi Keybinds 0 Fullscreen 2 Font 12/Smallcaps Map View 60x54 Tactical HUD 0 Map Filters NONE Filters NONE Steam 1 RUN: 42d43ae0-4f68-427a-8feb-820d5961f005